bitfinex-derivatives/quotes_ETHF0:USTF0_20250902
["timestamp","ask_amount","ask_price","bid_price","bid_amount"]
[1756801099826,0.42579,4378.3,4378.2,0.3943]
[1756801100131,0.6259228,4378.3,4378.2,0.7017]
[1756801100320,0.9288228,4378.3,4378.2,0.7017]
[1756801101624,0.6259228,4378.3,4378.2,0.7017]
[1756801102121,1.1232228,4378.3,4378.2,0.1939]
[1756801102429,1.1232228,4378.3,4378.2,0.235]
[1756801102822,0.8945328,4378.3,4378.2,0.235]
[1756801103024,1.1232228,4378.3,4378.2,0.235]
[1756801103832,1.1232228,4378.3,4378.2,0.4289]
[1756801104330,1.1232228,4378.3,4378.2,0.235]
[1756801106125,0.8203228,4378.3,4377.2,0.3074]
[1756801106330,0.1971,4377.5,4377.4,0.7017]
[1756801107130,0.3029,4377.8,4377.4,0.7017]
[1756801107330,3.2078,4378.6,4377.5,0.1167]
[1756801107531,0.22869,4377.9,4377.8,0.7017]
[1756801107732,0.42919518,4377.9,4377.8,0.9367]
[1756801107928,0.20050518,4377.9,4377.8,0.9367]
[1756801108931,0.3029,4378.3,4377.8,0.9367]
[1756801109130,0.22869,4378.1,4377.9,0.3074]
[1756801109336,0.22869,4378.1,4378.0,0.7017]
[1756801109527,0.20063815,4378.1,4378.0,0.8184]
[1756801110030,0.20063815,4378.1,4378.0,41.6184]
[1756801111022,0.20063815,4378.1,4378.0,41.5017]
[1756801111228,0.20063815,4378.1,4378.0,41.7367]
[1756801111733,0.50353815,4378.1,4378.0,41.7367]
[1756801111933,0.20063815,4378.1,4378.0,41.7367]
[1756801116130,0.20063815,4378.1,4378.0,41.8534]
[1756801116637,0.20063815,4378.1,4378.0,41.7367]
[1756801116933,0.20063815,4378.1,4378.0,0.9367]
[1756801117232,0.39773815,4378.1,4378.0,0.9367]
[1756801118440,0.70063815,4378.1,4378.0,0.9367]
[1756801118731,1.12372815,4378.1,4377.6,3.2078]
[1756801118936,0.3002,4377.7,4377.2,0.3121]
[1756801119237,0.7094,4377.4,4377.3,0.7493]
[1756801119534,0.7094,4377.4,4377.3,0.9467]
[1756801119734,0.91029098,4377.4,4377.3,0.9467]
[1756801120331,0.91031287,4377.4,4377.3,0.9467]
[1756801120541,0.91029615,4377.4,4377.3,0.9467]
[1756801121433,0.20089615,4377.4,4377.3,0.9467]
[1756801126239,0.3002,4378.1,4377.3,0.6346]
[1756801126439,0.22869,4377.7,4377.4,0.3121]
[1756801126640,0.22869,4377.7,4377.6,0.7117]
[1756801126941,0.20084205,4377.7,4377.6,0.7117]
[1756801127140,0.91024205,4377.7,4377.6,0.7117]
[1756801127341,0.91024205,4377.7,4377.6,0.7493]
[1756801127843,0.91024205,4377.7,4377.6,0.5143]
[1756801128141,0.61004205,4377.7,4377.1,32.888]
[1756801128330,0.52889,4377.2,4377.1,33.2001]
[1756801128535,0.22869,4377.2,4377.1,33.4351]
[1756801128737,0.5085,4377.6,4377.5,0.7117]
[1756801128936,0.9102937,4377.6,4377.5,0.9467]
[1756801129133,1.1389837,4377.6,4377.5,0.9467]
[1756801129336,0.6378837,4377.6,4377.5,0.9467]
[1756801129942,0.2008937,4377.6,4377.5,0.9467]
[1756801130146,0.2008937,4377.6,4377.5,1.0624]
[1756801130341,0.20088096,4377.6,4377.5,1.0624]
[1756801131644,3.508,4378.0,4377.5,1.0624]
[1756801131849,0.22869,4377.8,4377.6,0.3121]
[1756801132058,0.43699,4377.8,4377.7,0.9467]
[1756801132251,0.40919244,4377.8,4377.7,0.9467]
[1756801132856,0.63788244,4377.8,4377.7,0.9467]
[1756801133353,0.20089244,4377.8,4377.7,0.9467]
[1756801137657,0.40919244,4377.8,4377.7,0.9467]
[1756801138157,1.13898244,4377.8,4377.7,0.235]
[1756801138560,1.13898244,4377.8,4377.7,0.4372]
[1756801139856,1.13898244,4377.8,4377.7,0.7493]
[1756801140056,1.13898244,4377.8,4377.7,0.9467]
[1756801140747,1.13898244,4377.8,4377.7,0.4372]
[1756801140748,0.93809,4377.8,4377.7,0.4372]
[1756801140945,0.93809,4377.8,4377.2,0.5143]
[1756801140946,0.4092,4377.3,4377.2,0.5143]
[1756801141151,0.93809,4377.3,4377.2,0.9467]
[1756801141452,0.93809,4377.3,4377.2,0.235]
[1756801141648,1.13773665,4377.3,4377.2,0.235]
[1756801142051,1.13773665,4377.3,4377.2,0.4372]
[1756801142561,0.3002,4377.2,4377.1,32.888]
[1756801142857,0.49984665,4377.2,4377.1,33.123]
[1756801143452,0.49984665,4377.2,4377.1,33.4351]
[1756801143653,0.19964665,4377.2,4377.1,33.4351]
[1756801144054,0.3002,4377.9,4377.8,0.3996]
[1756801144260,0.19970466,4377.9,4377.8,0.9467]
[1756801144560,0.90910466,4377.9,4377.8,0.9467]
[1756801146254,0.19970466,4377.9,4377.8,0.9467]
[1756801149462,3.508,4378.6,4377.9,0.3119]
[1756801149661,3.508,4378.6,4377.8,0.6346]
[1756801149662,0.43749,4378.1,4378.0,0.954]
[1756801150363,0.2088,4378.1,4378.0,0.954]
[1756801150659,0.2988,4378.4,4378.1,0.3119]
[1756801150858,0.2988,4378.4,4378.0,0.6421]
[1756801150859,0.2088,4378.4,4378.3,0.719]
[1756801151160,0.2088,4378.4,4378.3,0.954]
[1756801152063,0.7112,4378.4,4378.3,0.719]
[1756801152257,0.7112,4378.4,4378.3,0.954]
[1756801154159,0.4124,4378.4,4378.3,0.954]
[1756801155069,0.7112,4379.1,4379.0,0.719]
[1756801155267,0.7112,4379.1,4379.0,0.954]
[1756801155467,0.93989,4379.1,4379.0,0.954]
[1756801156168,0.64109,4379.1,4379.0,0.954]
[1756801156368,0.22869,4379.1,4379.0,0.954]
[1756801156667,3.2078,4379.2,4379.1,0.719]
[1756801156870,3.2078,4379.8,4379.1,0.4071]
[1756801157060,0.2088,4379.3,4379.2,0.3119]
[1756801157263,0.2088,4379.3,4379.2,0.719]
[1756801157465,0.2988,4379.7,4379.3,0.3119]
[1756801157670,0.5076,4379.7,4379.6,0.4071]
[1756801157971,0.5076,4379.7,4379.6,0.719]
[1756801158671,0.7112,4379.7,4379.6,0.5129]
[1756801159069,0.2988,4379.6,4379.1,0.3119]
[1756801159273,0.73629,4379.4,4379.3,0.719]
[1756801159672,0.5076,4379.4,4379.3,41.519]
[1756801161273,0.2088,4379.4,4379.3,41.519]
[1756801162583,0.2088,4379.4,4379.3,41.754]
[1756801163680,0.5076,4379.4,4379.3,41.754]
[1756801164485,0.7112,4379.4,4379.3,0.954]
[1756801165585,0.7112,4379.4,4379.3,0.5129]
[1756801165888,0.7112,4379.4,4379.3,0.436]
[1756801166486,0.7112,4378.9,4378.7,33.2069]
[1756801166786,0.2988,4378.8,4378.7,32.895]
[1756801167093,0.93989,4378.8,4378.7,0.235]
[1756801167987,0.93989,4378.8,4378.7,0.436]
[1756801168790,0.22869,4378.8,4378.7,0.954]
[1756801169385,3.5066,4379.2,4378.8,0.3119]
[1756801169582,3.5066,4379.2,4378.8,0.719]
[1756801169792,0.22869,4379.0,4378.9,0.719]
[1756801169995,8.5518,4379.7,4379.0,0.429]
[1756801170189,8.5518,4379.7,4379.1,0.719]
[1756801170383,0.22869,4379.5,4379.4,0.4071]
[1756801170687,0.22869,4379.6,4379.5,0.719]
[1756801171085,0.2988,4380.1,4379.6,0.3119]
[1756801171283,0.7112,4380.1,4380.0,0.5129]
[1756801171478,0.91431276,4380.1,4380.0,0.954]
[1756801171683,0.61551276,4380.1,4380.0,0.954]
[1756801171891,0.64109,4380.1,4380.0,0.954]
[1756801172082,0.84423879,4380.1,4380.0,0.954]
[1756801172286,0.43183879,4380.1,4380.0,0.954]
[1756801172486,0.43186028,4380.1,4380.0,0.954]
[1756801172885,0.43185513,4380.1,4380.0,0.954]
[1756801173685,0.20316513,4380.1,4380.0,0.954]
[1756801173885,3.3078,4380.2,4380.1,0.3119]
[1756801174189,3.51100903,4380.2,4380.1,0.719]
[1756801174990,3.71980903,4380.2,4380.1,0.719]
[1756801176482,0.30320903,4380.2,4380.1,8.1551]
[1756801176685,3.00459097,4380.8,4380.1,7.6149]
[1756801176983,3.00459097,4380.8,4380.7,0.719]
[1756801177182,3.00459097,4380.8,4380.7,0.953]
[1756801178386,0.2988,4381.3,4380.8,0.3119]
[1756801178582,0.7112,4381.3,4381.2,0.719]
[1756801178786,0.91431355,4381.3,4381.2,0.953]
[1756801179191,1.14300355,4381.3,4381.2,0.953]
[1756801180790,0.64109,4381.3,4381.2,0.953]
[1756801181185,0.93129,4381.3,4381.2,0.719]
[1756801181389,0.93129,4381.3,4381.2,0.9483]
[1756801183192,0.93129,4381.3,4381.2,0.234]
[1756801183392,0.93129,4381.3,4381.2,0.948]
[1756801185390,0.43749,4381.3,4381.2,0.948]
[1756801185897,0.72769,4381.3,4381.2,0.948]
[1756801186297,0.2088,4381.3,4381.2,0.948]
[1756801187397,3.2078,4381.4,4381.3,0.3096]
[1756801187601,3.43649,4381.4,4381.3,0.714]
[1756801187791,3.2078,4381.4,4381.3,0.714]
[1756801192293,3.4126,4381.4,4381.3,0.714]
[1756801192597,3.4126,4381.4,4381.3,41.514]
[1756801193299,3.7028,4381.4,4381.3,41.514]
[1756801193500,3.7028,4381.4,4381.3,41.748]
[1756801196099,0.2048,4381.4,4381.3,41.748]
[1756801196804,0.6986,4382.3,4382.2,0.714]
[1756801197098,0.91767741,4382.3,4382.2,0.948]
[1756801197301,1.14642738,4382.3,4382.2,0.4347]
[1756801197902,1.14642738,4382.3,4382.2,0.7443]
[1756801198604,1.14642738,4382.3,4382.2,0.4347]
[1756801198904,1.14642738,4382.3,4382.2,0.7443]
[1756801199900,1.14642738,4382.3,4382.2,0.4347]
[1756801200197,0.6986,4381.5,4381.4,0.714]
[1756801200403,0.6986,4381.5,4381.4,0.948]
[1756801200604,0.9180094,4381.5,4381.4,0.948]
[1756801202606,0.6278094,4381.5,4381.4,0.948]
[1756801202801,0.2194094,4381.5,4381.4,0.948]
[1756801203003,0.6986,4381.5,4381.4,0.948]
[1756801203209,0.91813272,4381.5,4381.4,0.948]
[1756801203612,0.91820307,4381.5,4381.4,0.948]
[1756801203804,0.6986,4381.5,4381.4,0.948]
[1756801204112,0.91820278,4381.5,4381.4,0.948]
[1756801206006,0.21960278,4381.5,4381.4,0.948]
[1756801206508,0.2902,4381.9,4381.4,0.948]
[1756801206706,0.22869,4381.7,4381.5,0.3096]
[1756801206907,0.22869,4381.7,4381.6,0.948]
[1756801207110,0.21985057,4381.7,4381.6,0.948]
[1756801208308,3.4126,4382.4,4382.3,0.4044]
[1756801208607,3.4126,4382.4,4382.3,0.948]
[1756801209009,3.2078,4382.4,4382.3,0.948]
[1756801209207,3.2078,4383.8,4382.3,3.8462]
[1756801209512,0.4001,4382.9,4382.8,3.6144]
[1756801209713,0.4001,4382.9,4382.8,4.1494]
[1756801210307,3.2078,4383.8,4382.8,4.1494]
[1756801210610,0.86682135,4383.7,4382.9,0.301]
[1756801210806,0.63868135,4383.6,4382.9,0.301]
[1756801211207,0.4668,4383.7,4383.6,0.2013]
[1756801211406,0.6739,4383.7,4383.6,0.7363]
[1756801211608,0.4001,4383.7,4383.6,0.9416]
[1756801212505,1.27823717,4385.5,4383.6,4.1494]
[1756801212707,1.03842725,4385.4,4385.3,3.7101]
[1756801212907,0.4001,4385.4,4385.3,4.1024]
[1756801213215,4.45393717,4388.0,4385.6,0.301]
[1756801213413,4.07303672,4387.9,4386.3,0.301]
[1756801213603,0.63727672,4387.8,4386.4,3.4418]
[1756801213808,0.63727672,4387.7,4387.1,3.2078]
[1756801214005,0.63727672,4387.6,4387.1,3.2078]
[1756801214211,0.63727672,4387.5,4387.2,0.234]
[1756801214407,0.2279,4388.4,4387.2,0.7363]
[1756801214608,0.39010285,4388.7,4388.3,3.2078]
[1756801214906,0.2279,4388.6,4388.3,3.2078]
[1756801215114,1.62413109,4390.1,4388.3,3.4091]
[1756801215115,0.22784,4389.5,4388.3,3.4091]
[1756801215419,0.22783001,4390.0,4389.4,3.2078]
[1756801215611,0.63446036,4389.9,4389.4,3.2078]
[1756801215812,0.63446036,4389.8,4389.4,3.2078]
[1756801216014,0.63446036,4389.7,4389.4,3.2078]
[1756801216217,3.2078,4389.9,4389.4,0.234]
[1756801216613,0.22781,4389.8,4389.4,0.234]
[1756801216809,4.2278,4390.1,4389.4,0.234]
[1756801217011,0.1,4390.2,4389.8,3.2078]
[1756801217318,0.1,4390.2,4389.9,0.234]
[1756801217718,0.1,4390.2,4390.1,0.301]
[1756801217918,0.1,4390.2,4390.1,0.7076]
[1756801219423,0.1,4390.2,4390.1,0.7363]
[1756801219817,0.1,4390.2,4390.1,0.9416]
[1756801220320,3.2078,4391.8,4390.2,0.301]
[1756801220520,0.62576595,4391.7,4390.6,0.5023]
[1756801220717,0.62576595,4391.6,4390.7,0.234]
[1756801220918,3.2078,4391.8,4390.7,0.234]
[1756801221219,0.62579621,4391.7,4390.8,0.2013]
[1756801221420,3.2078,4391.8,4391.1,0.301]
[1756801221622,3.2078,4391.8,4391.2,0.234]
[1756801222026,3.2078,4391.8,4391.1,0.301]
[1756801222314,3.2078,4391.8,4391.3,0.234]
[1756801223326,0.234,4392.1,4391.3,0.234]
[1756801223628,0.62365324,4392.0,4391.3,0.234]
[1756801223925,0.62365324,4391.9,4391.3,0.234]
[1756801224220,0.62365324,4391.8,4391.3,0.234]
[1756801224420,0.234,4392.1,4391.3,0.234]
[1756801224421,0.62365324,4391.7,4391.3,0.234]
[1756801224615,0.234,4392.1,4391.4,0.301]
[1756801224816,0.62319628,4392.0,4391.4,0.301]
[1756801225122,3.2078,4392.3,4391.6,0.301]
[1756801225323,0.62286694,4392.2,4391.6,0.301]
[1756801225619,0.62286694,4392.1,4391.6,0.301]
[1756801225822,0.62286694,4392.0,4391.6,0.301]
[1756801226022,3.2078,4392.3,4391.6,0.301]
[1756801226223,0.62283606,4392.2,4391.6,0.301]
[1756801226421,0.62283606,4392.1,4391.6,0.301]
[1756801226619,3.2078,4392.3,4391.6,0.301]
[1756801226816,0.62255489,4392.2,4391.6,0.301]
[1756801227017,0.62255489,4392.1,4391.6,0.535]
[1756801227217,3.2078,4392.3,4391.6,0.535]
[1756801227523,0.62235122,4392.2,4391.6,0.535]
[1756801227722,0.62235122,4392.1,4391.6,0.535]
[1756801227924,3.2078,4392.3,4391.6,0.535]
[1756801228222,0.6223665,4392.2,4391.6,0.535]
[1756801228422,3.2078,4392.3,4391.6,0.535]
[1756801228619,0.62223987,4392.2,4391.6,0.535]
[1756801228823,3.2078,4392.3,4391.6,0.535]
[1756801229125,0.6222467,4392.2,4391.6,0.7363]
[1756801229325,3.2078,4392.3,4391.6,0.7363]
[1756801229526,0.62224469,4392.2,4391.6,0.7363]
[1756801229726,3.2078,4392.3,4391.6,0.72630746]
[1756801229927,0.62224572,4392.2,4391.6,0.72630746]
[1756801230127,3.2078,4392.3,4391.6,0.72630746]
[1756801230426,0.62220011,4392.2,4391.6,0.72630746]
[1756801230625,3.2078,4392.3,4391.6,0.72630746]
[1756801230824,0.62220098,4392.2,4391.6,0.4353]
[1756801231024,3.2078,4392.3,4391.6,0.4353]
[1756801231223,0.62219848,4392.2,4391.6,0.4353]
[1756801231423,3.2078,4392.3,4391.6,0.4353]
[1756801231828,3.2078,4392.3,4391.7,0.5023]
[1756801232021,3.2078,4392.3,4391.6,0.234]
[1756801232022,0.234,4392.7,4392.0,0.3164]
[1756801232220,0.62241637,4392.6,4392.1,0.301]
[1756801232420,0.62241637,4392.5,4392.2,0.2013]
[1756801232621,3.2078,4392.8,4392.3,0.301]
[1756801232821,3.2078,4392.8,4392.5,0.301]
[1756801233029,3.2078,4392.8,4392.4,0.234]
[1756801233231,3.2078,4392.8,4392.5,0.301]
[1756801233429,3.2078,4392.8,4392.6,0.301]
[1756801233631,3.2078,4392.8,4392.4,0.234]
[1756801233632,3.2078,4392.8,4392.5,0.301]
[1756801233935,3.2078,4392.8,4392.6,0.301]
[1756801234430,0.62345198,4392.7,4392.6,0.5023]
[1756801235534,0.62345198,4392.7,4392.6,0.301]
[1756801236433,0.62345198,4392.7,4392.6,0.5023]
[1756801237630,0.62345198,4392.7,4392.6,0.301]
[1756801238636,0.62345198,4392.7,4392.6,0.7076]
[1756801239238,1.84048915,4392.7,4392.6,0.7076]
[1756801240135,0.62345198,4392.7,4392.6,0.7076]
[1756801240939,4.62345198,4392.7,4391.7,3.2078]
[1756801241136,1.61369249,4391.8,4391.7,3.2078]
[1756801241337,2.23714447,4391.8,4391.7,3.4944]
[1756801241740,2.23714447,4391.8,4391.7,3.8913]
[1756801242138,0.62345198,4391.8,4391.7,0.6835]
[1756801242341,2.65361584,4391.8,4391.7,0.6835]
[1756801242950,0.62345198,4391.8,4391.7,0.6835]
[1756801244049,0.62345198,4391.8,4391.7,0.9165]
[1756801244252,0.62345198,4391.8,4391.2,0.233]
[1756801244253,4.27125198,4391.8,4391.2,0.233]
[1756801244453,1.96531657,4391.4,4391.3,0.3969]
[1756801244742,2.58876855,4391.4,4391.0,3.3229]
[1756801244948,3.2078,4391.2,4389.5,3.3224]
[1756801245146,1.63059249,4390.1,4389.6,0.233]
[1756801245345,0.1676,4389.7,4389.6,0.6299]
[1756801245542,2.42164447,4389.7,4389.6,0.6299]
[1756801245743,2.25404447,4389.7,4389.6,0.6299]
[1756801245954,0.62345198,4389.7,4389.6,0.6299]
[1756801246249,0.95865198,4389.7,4389.6,0.2866]
[1756801246544,0.95865198,4389.7,4389.6,0.5196]
[1756801246746,0.95865198,4389.7,4389.6,0.2866]
[1756801246952,0.95865198,4389.7,4389.6,0.4872]
[1756801248544,0.95865198,4389.7,4389.5,0.233]
[1756801248545,0.3352,4389.1,4389.0,0.4872]
[1756801248747,2.58977525,4389.1,4389.0,0.4872]
[1756801248946,0.95865198,4389.1,4389.0,0.2866]
[1756801250147,2.58734983,4389.1,4389.0,0.2866]
[1756801250951,2.58734983,4389.1,4389.0,0.4872]
[1756801251259,0.95865198,4389.1,4389.0,0.4872]
[1756801251450,0.1676,4388.3,4388.2,0.4872]
[1756801251754,0.79105198,4388.3,4388.2,0.9165]
[1756801252655,0.62345198,4388.3,4388.2,0.9165]
[1756801253655,0.62345198,4388.3,4388.2,0.6835]
[1756801253852,0.62345198,4388.3,4388.2,0.9165]
[1756801254046,0.79105198,4388.3,4388.2,0.9165]
[1756801254447,0.62345198,4388.3,4388.2,0.6835]
[1756801254658,0.62345198,4388.3,4388.2,0.9165]
[1756801255853,0.62345198,4388.3,4388.2,0.6835]
[1756801256053,0.62345198,4388.3,4388.2,0.9165]
[1756801257560,0.62345198,4388.3,4388.2,4.9165]
[1756801258650,1.22079394,4389.3,4388.2,4.9165]
[1756801258954,0.216,4390.0,4388.2,4.9165]
[1756801258955,1.22079394,4389.7,4389.3,0.2866]
[1756801259162,1.38839394,4389.7,4389.6,0.6835]
[1756801259561,0.7522986,4389.7,4389.6,0.6835]
[1756801260860,0.5846986,4389.7,4389.6,0.6835]
[1756801263658,0.1135,4389.9,4389.7,0.2866]
[1756801263863,0.1135,4389.9,4389.8,0.9165]
[1756801264465,3.2078,4390.3,4389.8,4.9165]
[1756801264660,0.5850787,4390.2,4390.1,0.6835]
[1756801264859,0.5850787,4390.2,4390.1,0.9165]
[1756801265061,3.2078,4391.0,4390.2,0.2866]
[1756801265262,0.58505336,4390.9,4390.3,0.233]
[1756801265568,1.20325336,4390.8,4390.7,0.4872]
[1756801265961,0.98545336,4390.8,4390.7,0.6835]
[1756801266162,0.58505336,4390.8,4390.7,0.9165]
[1756801266365,0.58505336,4390.9,4390.7,0.6299]
[1756801266861,0.58505336,4390.9,4390.8,0.6835]
[1756801267060,3.2078,4391.6,4390.9,0.2866]
[1756801267262,3.2078,4391.6,4391.5,0.6835]
[1756801267263,3.6082,4391.6,4391.5,0.6835]
[1756801267462,4.19381492,4391.6,4391.5,0.9165]
[1756801267967,3.99991492,4391.6,4391.5,0.9165]
[1756801268372,4.19381492,4391.6,4391.5,0.9165]
[1756801268664,4.19381492,4391.6,4391.0,0.1146]
[1756801268665,4.41161492,4391.6,4391.0,0.1146]
[1756801268864,4.41161492,4391.6,4390.5,0.1146]
[1756801268865,0.3912,4391.2,4391.1,0.7499]
[1756801269366,0.3912,4391.2,4391.1,0.9457]
[1756801270364,3.2078,4391.6,4391.1,0.9457]
[1756801270563,3.2078,4391.6,4391.2,0.3088]
[1756801270763,3.599,4391.6,4391.5,0.5169]
[1756801270964,3.3996,4391.6,4391.5,0.7127]
[1756801271365,3.599,4391.6,4391.5,0.7127]
[1756801272471,3.3996,4391.6,4391.5,0.7127]
[1756801272968,3.2078,4391.6,4391.5,0.8268]
[1756801273272,3.3996,4391.6,4391.5,0.8268]
[1756801273775,3.3996,4391.6,4391.5,1.0598]
[1756801274967,3.2078,4392.1,4391.6,0.3088]
[1756801275174,3.599,4392.1,4392.0,0.7127]
[1756801276165,3.3996,4392.1,4392.0,0.7127]
[1756801276674,3.599,4392.1,4392.0,0.7127]
[1756801277371,3.8175,4392.1,4392.0,0.5169]
[1756801278374,0.3912,4391.9,4391.8,0.5418]
[1756801278578,0.6097,4391.9,4391.8,0.5169]
[1756801278772,0.3912,4391.9,4391.8,0.7127]
[1756801279068,3.4072,4392.1,4392.0,0.5169]
[1756801279270,3.8175,4392.1,4391.1,0.3088]
[1756801279473,0.1994,4391.4,4391.3,0.5169]
[1756801279663,0.3912,4391.4,4391.3,0.9457]
[1756801280269,3.2078,4392.1,4391.4,0.3088]
[1756801280469,3.599,4392.1,4392.0,0.5169]
[1756801280977,0.3912,4391.5,4391.4,0.5169]
[1756801281168,0.3912,4391.5,4391.4,0.7499]
[1756801281474,3.2078,4392.1,4391.5,0.4229]
[1756801281677,3.8175,4392.1,4392.0,0.5169]
[1756801281866,3.8175,4392.1,4392.0,0.3088]
[1756801282778,3.599,4392.1,4392.0,0.5169]
[1756801283074,3.599,4392.1,4392.0,0.7127]
[1756801283573,3.599,4392.1,4391.5,0.1141]
[1756801283574,0.1918,4391.6,4391.5,0.6369]
[1756801283769,3.2078,4392.1,4391.5,0.751]
[1756801283972,3.2078,4392.6,4392.0,0.518]
[1756801284477,3.599,4392.6,4392.5,0.2081]
[1756801284677,3.8175,4392.6,4392.5,0.3088]
[1756801285374,3.8175,4392.6,4392.5,0.5169]
[1756801285574,3.8175,4392.6,4392.5,0.3088]
[1756801286778,0.2185,4392.5,4392.3,0.3088]
[1756801286971,0.2185,4392.3,4392.0,0.3088]
[1756801287278,0.3912,4392.1,4392.0,0.7127]
[1756801288279,3.8175,4392.1,4392.0,0.9457]
[1756801288780,0.3912,4392.1,4392.0,0.9457]
[1756801289778,3.2078,4392.6,4392.0,1.0598]
[1756801289979,3.599,4392.6,4392.5,0.2081]
[1756801290279,3.8175,4392.6,4392.5,0.5169]
[1756801290475,3.2078,4392.6,4392.5,0.7127]
[1756801290682,5.344,4393.1,4392.5,0.518]
[1756801290683,3.2078,4393.1,4392.5,0.518]
[1756801290976,3.3996,4393.1,4393.0,0.7127]
[1756801291378,3.599,4393.1,4393.0,0.7127]
[1756801292573,3.8175,4393.1,4393.0,0.5169]
[1756801292872,3.8175,4393.1,4393.0,0.3088]
[1756801293879,0.1994,4392.2,4392.1,0.8427]
[1756801294076,0.2185,4392.6,4392.1,0.8427]
[1756801294280,0.1918,4392.3,4392.2,0.7127]
[1756801294478,3.599,4393.1,4393.0,0.2081]
[1756801294684,4.17429661,4393.1,4393.0,0.7127]
[1756801295281,4.39279661,4393.1,4393.0,0.7127]
[1756801295682,4.17429661,4393.1,4393.0,0.7127]
[1756801296184,4.39279661,4393.1,4393.0,0.5169]
[1756801296686,4.39279661,4393.1,4393.0,0.3088]
[1756801297679,4.39279661,4393.1,4392.5,0.3471]
[1756801297986,3.599,4393.1,4393.0,0.5169]
[1756801298185,4.17466608,4393.1,4393.0,0.7127]
[1756801299082,3.599,4393.1,4393.0,0.1934]
[1756801299288,3.8168,4393.1,4393.0,0.4967]
[1756801299476,3.599,4393.1,4393.0,0.4967]
[1756801299681,3.599,4393.1,4393.0,0.7018]
[1756801300082,3.8168,4393.1,4393.0,0.4967]
[1756801300282,3.5982,4393.1,4393.0,0.7018]
[1756801301189,3.816,4393.1,4393.0,0.7018]
[1756801301589,3.816,4393.1,4393.0,0.3033]
[1756801302490,3.816,4393.1,4392.6,0.233]
[1756801302692,0.3977,4392.8,4392.7,0.4967]
[1756801303282,0.2178,4393.0,4392.0,0.1141]
[1756801303283,0.2178,4392.7,4392.4,0.233]
[1756801303491,0.6155,4392.5,4392.4,0.5363]
[1756801303684,0.6155,4392.5,4392.4,0.4967]
[1756801303993,0.6155,4391.8,4391.7,0.3033]
[1756801304790,0.2178,4392.6,4391.8,0.3033]
[1756801304985,0.5767126,4392.5,4392.4,0.7018]
[1756801305393,3.2078,4392.7,4392.6,0.7018]
[1756801306985,3.2078,4392.7,4392.1,0.7018]
[1756801306986,0.1991,4392.2,4392.1,0.7018]
[1756801307288,3.4256,4392.7,4392.2,0.3033]
[1756801307491,0.3977,4391.7,4391.6,0.3033]
[1756801307694,0.6155,4391.7,4391.6,0.4967]
[1756801307890,0.3977,4391.7,4391.6,0.7018]
[1756801310698,3.2078,4391.8,4391.6,0.3985]
[1756801310996,3.4069,4391.8,4391.7,0.3033]
[1756801311291,3.4069,4391.8,4391.7,0.7018]
[1756801311798,3.6055,4391.8,4391.7,0.7018]
[1756801312194,3.4069,4391.8,4391.7,0.7018]
[1756801312494,3.6055,4391.8,4391.7,0.7018]
[1756801312796,3.8233,4391.8,4391.7,0.4967]
[1756801313091,0.3977,4391.6,4391.2,0.233]
[1756801313297,0.6155,4391.6,4391.2,0.233]
[1756801313996,0.6155,4391.6,4391.5,0.1934]
[1756801314199,0.6155,4391.6,4391.5,0.4967]
[1756801314491,0.6155,4391.6,4390.8,3.2078]
[1756801314684,0.6155,4391.5,4391.4,0.3033]
[1756801315690,0.6155,4391.5,4390.9,0.3033]
[1756801315891,0.2178,4390.9,4390.8,3.5111]
[1756801316197,0.6155,4390.9,4390.8,3.5111]
[1756801316392,0.6155,4390.9,4390.8,0.4967]
[1756801316899,3.2078,4391.3,4390.3,33.0963]
[1756801316900,0.3977,4390.4,4390.3,33.0963]
[1756801317195,0.6155,4390.4,4390.3,0.3033]
[1756801317396,0.6155,4390.4,4389.7,3.2078]
[1756801317397,0.6155,4390.4,4389.8,0.3033]
[1756801317594,0.2178,4390.3,4389.9,0.5363]
[1756801317795,0.3977,4390.0,4389.9,0.5363]
[1756801317994,0.6155,4390.0,4389.9,0.3033]
[1756801318202,0.1991,4389.2,4389.1,0.7018]
[1756801318401,0.1991,4389.2,4389.1,0.9348]
[1756801319899,0.3977,4389.2,4389.1,0.7018]
[1756801320100,0.3977,4389.2,4389.1,0.9348]
[1756801321805,0.3977,4389.2,4389.1,0.7018]
[1756801322005,0.3977,4389.2,4389.1,0.9348]
[1756801322205,0.3977,4389.2,4389.1,0.5363]
[1756801322510,0.6166,4389.2,4389.1,0.7297]
[1756801322710,0.3977,4389.2,4389.1,0.9348]
[1756801323511,0.1991,4389.2,4389.1,0.9348]
[1756801323812,3.2078,4389.7,4389.2,0.3033]
[1756801324110,0.1991,4389.3,4389.2,0.7018]
[1756801324311,0.3977,4389.3,4389.2,0.7018]
[1756801324908,0.3977,4388.7,4388.6,0.4967]
[1756801325206,0.2189,4389.5,4388.7,0.3033]
[1756801325403,0.3977,4389.5,4389.4,0.3985]
[1756801325708,3.2078,4389.7,4389.6,0.3985]
[1756801325910,3.4069,4389.7,4389.6,0.7018]
[1756801326208,3.6055,4389.7,4389.6,0.7018]
[1756801326712,3.8244,4389.7,4389.6,0.3033]
[1756801327009,3.8244,4389.7,4389.6,0.4967]
[1756801327411,0.3977,4389.5,4388.6,0.3033]
[1756801327610,7.43561,4389.7,4388.3,3.2078]
[1756801327611,0.3977,4389.4,4389.3,0.1934]